bitfinex-derivatives/quotes_BTCF0:USTF0_20250930
["timestamp","ask_amount","ask_price","bid_price","bid_amount"]
[1759234235998,1.58960928,113140.0,113130.0,0.4713589]
[1759234240600,2.27964704,113140.0,113130.0,0.0008]
[1759234240993,0.1212989,113130.0,113120.0,0.5180252]
[1759234241198,0.77977442,113130.0,113120.0,0.5180252]
[1759234242012,0.77977442,113130.0,113120.0,0.0474603]
[1759234242208,0.79219852,113130.0,113120.0,0.0474603]
[1759234242402,0.79219852,113130.0,113120.0,0.0608603]
[1759234242603,0.79219852,113130.0,113120.0,0.0628603]
[1759234243101,0.79219852,113130.0,113120.0,0.151217]
[1759234243304,0.79219852,113130.0,113120.0,0.150817]
[1759234243600,0.79219852,113130.0,113120.0,0.0628603]
[1759234243804,0.79219852,113130.0,113120.0,0.1508171]
[1759234244300,0.79219852,113130.0,113120.0,0.0628603]
[1759234245500,0.81246284,113130.0,113120.0,0.0624603]
[1759234245805,0.81246284,113130.0,113120.0,0.0628603]
[1759234248208,0.81246284,113130.0,113120.0,0.0478603]
[1759234248403,0.81646284,113130.0,113120.0,0.0498603]
[1759234250209,0.83451441,113130.0,113120.0,0.0498603]
[1759234250409,1.63835441,113130.0,113120.0,0.0498603]
[1759234250704,1.63835441,113130.0,113120.0,0.0494603]
[1759234250910,1.63835441,113130.0,113120.0,0.0498603]
[1759234252411,0.83451441,113130.0,113120.0,0.0498603]
[1759234252598,1.63835441,113130.0,113120.0,0.0498603]
[1759234257316,1.99915441,113130.0,113120.0,0.0498603]
[1759234257517,1.99915441,113130.0,113120.0,0.0024]
[1759234259215,1.59531441,113130.0,113120.0,0.0024]
[1759234259419,2.39911441,113130.0,113120.0,0.0024]
[1759234259612,2.39911441,113130.0,113120.0,0.002]
[1759234260120,2.39911441,113130.0,113120.0,0.0024]
[1759234260923,2.72835217,113130.0,113120.0,0.0024]
[1759234262622,0.1015146,113110.0,113100.0,0.0474603]
[1759234262822,1.58563012,113110.0,113100.0,0.0694003]
[1759234263217,1.58865278,113110.0,113100.0,0.0698003]
[1759234263622,0.78485278,113110.0,113100.0,0.1581727]
[1759234263823,1.58865278,113110.0,113100.0,0.1581727]
[1759234264024,1.58865278,113110.0,113100.0,0.1591727]
[1759234264228,0.78485278,113110.0,113100.0,0.1591727]
[1759234264525,1.58861278,113110.0,113100.0,0.1591727]
[1759234264824,1.58861278,113110.0,113100.0,0.1581727]
[1759234265025,1.25941502,113110.0,113100.0,0.1691727]
[1759234265226,1.25937502,113110.0,113100.0,0.1691727]
[1759234265723,1.25941502,113110.0,113100.0,0.1591727]
[1759234266318,1.26341502,113110.0,113100.0,0.1581727]
[1759234268022,0.45961502,113110.0,113100.0,0.1581727]
[1759234268228,1.26337502,113110.0,113100.0,0.1581727]
[1759234269230,0.45961502,113110.0,113100.0,0.1581727]
[1759234269427,1.26337502,113110.0,113100.0,0.1581727]
[1759234270624,1.26337502,113110.0,113100.0,0.1107124]
[1759234271024,1.66224484,113110.0,113100.0,0.1107124]
[1759234271430,0.85848484,113110.0,113100.0,0.1107124]
[1759234271628,1.66224484,113110.0,113100.0,0.5323227]
[1759234271832,1.33300708,113110.0,113100.0,0.5323227]
[1759234274327,0.52924708,113110.0,113100.0,0.5323227]
[1759234274529,1.33300708,113110.0,113100.0,0.5323227]
[1759234278744,1.66224484,113110.0,113100.0,0.5323227]
[1759234279445,1.66224484,113110.0,113100.0,0.1581727]
[1759234279747,1.66224484,113110.0,113100.0,0.5189727]
[1759234280343,1.66224484,113110.0,113100.0,0.1581727]
[1759234281746,0.85848484,113110.0,113100.0,0.1581727]
[1759234281948,1.66220484,113110.0,113100.0,0.1581727]
[1759234284853,1.66216484,113110.0,113100.0,0.1581727]
[1759234285448,0.87873527,113110.0,113100.0,0.1581727]
[1759234285649,1.68241527,113110.0,113100.0,0.1581727]
[1759234289762,1.68241527,113110.0,113100.0,0.1107124]
[1759234290464,1.35336269,113110.0,113100.0,0.1107124]
[1759234300871,1.33311226,113110.0,113100.0,0.1107124]
[1759234302766,1.33299226,113110.0,113100.0,0.1107124]
[1759234303473,1.00356932,113110.0,113100.0,0.1107124]
[1759234303673,1.33299226,113110.0,113100.0,0.1107124]
[1759234303970,1.33299226,113110.0,113100.0,0.0004]
[1759234304177,1.35305607,113110.0,113100.0,0.13637888]
[1759234304672,1.35305607,113110.0,113100.0,0.15724888]
[1759234304872,1.71385607,113110.0,113100.0,0.15764888]
[1759234305367,0.91033607,113110.0,113100.0,0.15764888]
[1759234305573,1.71385607,113110.0,113100.0,0.15764888]
[1759234306474,0.91033607,113110.0,113100.0,0.15764888]
[1759234306674,1.71381607,113110.0,113100.0,0.15764888]
[1759234309176,1.71381607,113110.0,113100.0,0.06927648]
[1759234309376,1.71381607,113110.0,113100.0,0.15764888]
[1759234310378,0.91033607,113110.0,113100.0,0.15764888]
[1759234310677,1.71381607,113110.0,113100.0,0.1100424]
[1759234311176,1.71381607,113110.0,113100.0,0.02167]
[1759234311378,1.71381607,113110.0,113100.0,0.1100424]
[1759234311579,1.71381607,113110.0,113100.0,0.02167]
[1759234312077,1.71381607,113110.0,113100.0,0.1100424]
[1759234312578,1.71381607,113110.0,113100.0,0.02167]
[1759234313071,1.71381607,113110.0,113100.0,0.0004]
[1759234313279,2.04323901,113110.0,113100.0,0.0004]
[1759234313878,0.1233024,113100.0,113090.0,0.15724968]
[1759234314177,0.80527475,113100.0,113090.0,0.15804968]
[1759234315072,0.80527475,113100.0,113090.0,0.07567648]
[1759234315468,0.80527475,113100.0,113090.0,0.07487648]
[1759234315668,0.80527475,113100.0,113090.0,0.07527648]
[1759234316773,0.80527475,113100.0,113090.0,0.06927648]
[1759234316974,1.61071475,113100.0,113090.0,0.07027648]
[1759234317478,1.59061094,113100.0,113090.0,0.07027648]
[1759234317778,1.59061094,113100.0,113090.0,0.15865668]
[1759234318180,1.58861094,113100.0,113090.0,0.15765668]
[1759234318382,1.59361094,113100.0,113090.0,0.15765668]
[1759234318583,0.79017094,113100.0,113090.0,0.15765668]
[1759234318884,0.93476506,113100.0,113090.0,0.15765668]
[1759234319078,1.59361094,113100.0,113090.0,0.15765668]
[1759234319276,1.251408,113100.0,113090.0,0.53239668]
[1759234319577,1.253408,113100.0,113090.0,0.53239668]
[1759234320385,0.449968,113100.0,113090.0,0.53239668]
[1759234320577,1.253368,113100.0,113090.0,0.53239668]
[1759234320973,0.449968,113100.0,113090.0,0.44401648]
[1759234321177,1.253368,113100.0,113090.0,0.44401648]
[1759234321382,0.449968,113100.0,113090.0,0.44401648]
[1759234321582,1.253368,113100.0,113090.0,0.44401648]
[1759234321983,1.253368,113100.0,113090.0,0.53239668]
[1759234322878,0.449968,113100.0,113090.0,0.53239668]
[1759234323078,1.253368,113100.0,113090.0,0.53239668]
[1759234324785,1.253368,113100.0,113090.0,1.26181962]
[1759234324786,0.03217266,113100.0,113090.0,1.26181962]
[1759234324982,0.01002266,113100.0,113090.0,1.2776383]
[1759234325183,0.81342266,113100.0,113090.0,1.2776383]
[1759234325683,0.81342266,113100.0,113090.0,1.21421314]
[1759234326081,0.01002266,113100.0,113090.0,1.21421314]
[1759234327880,0.06836099,113110.0,113100.0,0.1023124]
[1759234328081,0.21608,113120.0,113100.0,0.87717694]
[1759234328283,0.42717488,113130.0,113120.0,0.1235668]
[1759234328284,0.98340488,113130.0,113120.0,0.1235668]
[1759234328483,1.00329845,113130.0,113120.0,0.1235668]
[1759234328881,1.01607845,113130.0,113120.0,0.1096268]
[1759234329695,0.92772795,113130.0,113120.0,0.1096268]
[1759234329892,0.92772795,113130.0,113120.0,0.1235668]
[1759234330089,0.91494795,113130.0,113120.0,0.1235668]
[1759234330285,0.58552501,113130.0,113120.0,0.1235668]
[1759234330597,1.16429438,113130.0,113120.0,0.1235668]
[1759234330784,0.38085726,113130.0,113120.0,0.1235668]
[1759234330990,0.40885726,113130.0,113120.0,0.1235668]
[1759234331291,1.19229438,113130.0,113120.0,0.1235668]
[1759234331996,0.38897438,113130.0,113120.0,0.1235668]
[1759234332194,0.86283144,113130.0,113120.0,0.4843668]
[1759234332486,1.19225438,113130.0,113120.0,0.4843668]
[1759234332889,1.19225438,113130.0,113120.0,0.53189548]
[1759234333491,1.19225438,113130.0,113120.0,0.4843668]
[1759234333691,1.19225438,113130.0,113120.0,0.53189548]
[1759234334198,1.19225438,113130.0,113120.0,0.4843668]
[1759234334792,1.19221438,113130.0,113120.0,0.53189548]
[1759234337395,1.19221438,113130.0,113120.0,0.4843668]
[1759234337689,1.21030438,113130.0,113120.0,0.4843668]
[1759234338096,1.20568438,113130.0,113120.0,0.4843668]
[1759234340896,1.20568438,113130.0,113120.0,0.51595826]
[1759234341901,1.19221438,113130.0,113120.0,0.51595826]
[1759234342493,0.86267144,113130.0,113120.0,1.2453812]
[1759234342700,0.86267144,113130.0,113120.0,0.91595826]
[1759234342889,0.05955144,113130.0,113120.0,0.91595826]
[1759234343090,0.86267144,113130.0,113120.0,0.91595826]
[1759234343590,0.05955144,113130.0,113120.0,0.91595826]
[1759234343792,0.86263144,113130.0,113120.0,0.91595826]
[1759234345195,0.05955144,113130.0,113120.0,0.91595826]
[1759234345396,0.84375144,113130.0,113120.0,0.91595826]
[1759234345591,0.05955144,113130.0,113120.0,0.91595826]
[1759234345798,0.84383144,113130.0,113120.0,0.91595826]
[1759234346096,0.05955144,113130.0,113120.0,0.91595826]
[1759234346298,0.83191144,113130.0,113120.0,0.91595826]
[1759234346598,0.05955144,113130.0,113120.0,0.91595826]
[1759234346799,0.83191144,113130.0,113120.0,0.91595826]
[1759234347297,0.83191144,113130.0,113120.0,0.96348694]
[1759234349091,1.16133438,113130.0,113120.0,0.96348694]
[1759234351198,1.16133438,113130.0,113120.0,0.93189548]
[1759234352000,0.83191144,113130.0,113120.0,0.93189548]
[1759234352200,1.16116028,113130.0,113120.0,1.26114432]
[1759234353202,1.16116028,113130.0,113120.0,0.93189548]
[1759234353401,1.16116028,113130.0,113120.0,1.26114432]
[1759234354295,1.16116028,113130.0,113120.0,0.93189548]
[1759234354491,1.17463028,113130.0,113120.0,1.26114432]
[1759234355102,1.16116028,113130.0,113120.0,0.93189548]
[1759234356303,0.83191144,113130.0,113120.0,0.93189548]
[1759234356699,1.16116028,113130.0,113120.0,0.93189548]
[1759234357299,1.16116028,113130.0,113120.0,0.8843668]
[1759234357701,0.83191144,113130.0,113120.0,0.8843668]
[1759234357897,1.16116028,113130.0,113120.0,0.8843668]
[1759234358203,0.83191144,113130.0,113120.0,0.8843668]
[1759234358404,1.16116028,113130.0,113120.0,0.8843668]
[1759234359001,0.83191144,113130.0,113120.0,0.8843668]
[1759234359207,1.16116028,113130.0,113120.0,0.8843668]
[1759234359505,1.16116028,113130.0,113120.0,0.81361564]
[1759234360102,1.16116028,113130.0,113120.0,0.4843668]
[1759234360303,1.16116028,113130.0,113120.0,0.81361564]
[1759234360806,0.05955144,113130.0,113120.0,0.86116263]
[1759234361006,1.19216028,113130.0,113120.0,0.86116263]
[1759234361406,0.86291144,113130.0,113120.0,0.86116263]
[1759234361607,1.19236028,113130.0,113120.0,0.53191379]
[1759234361808,1.19236028,113130.0,113120.0,0.86116263]
[1759234362108,1.19236028,113130.0,113120.0,0.53191379]
[1759234362309,1.19236028,113130.0,113120.0,0.86116263]
[1759234363507,1.19236028,113130.0,113120.0,0.53191379]
[1759234366617,1.20526028,113130.0,113120.0,0.53191379]
[1759234370817,1.20526028,113130.0,113120.0,0.5477384]
[1759234372014,0.40170028,113130.0,113120.0,0.5477384]
[1759234372216,1.20522028,113130.0,113120.0,0.5477384]
[1759234372613,0.86307144,113130.0,113120.0,0.5477384]
[1759234372814,1.19232028,113130.0,113120.0,0.5477384]
[1759234373310,1.19228028,113130.0,113120.0,0.5477384]
[1759234373507,1.19228028,113130.0,113120.0,0.87698724]
[1759234373708,0.86299144,113130.0,113120.0,0.87698724]
[1759234373913,1.19240028,113130.0,113120.0,0.87698724]
[1759234374918,0.05955144,113130.0,113120.0,0.87698724]
[1759234375110,1.19240028,113130.0,113120.0,0.87698724]
[1759234375615,1.19244028,113130.0,113120.0,0.87698724]
[1759234376117,0.86319144,113130.0,113120.0,0.87698724]
[1759234376316,1.19244028,113130.0,113120.0,0.87698724]
[1759234376617,0.86319144,113130.0,113120.0,0.87698724]
[1759234376818,1.19244028,113130.0,113120.0,0.87698724]
[1759234377421,0.38880028,113130.0,113120.0,0.87698724]
[1759234377816,0.028,113130.0,113120.0,1.54286448]
[1759234378213,0.028,113130.0,113120.0,1.62237512]
[1759234378918,0.32924884,113140.0,113130.0,0.0883489]
[1759234379122,0.35028884,113140.0,113130.0,0.87569421]
[1759234380322,0.02104,113140.0,113130.0,0.87569421]
[1759234380520,0.41940156,113150.0,113140.0,0.1222211]
[1759234380716,1.1642594,113150.0,113140.0,0.53056795]
[1759234381219,1.1642594,113150.0,113140.0,0.49220731]
[1759234381419,1.1642594,113150.0,113140.0,0.53973398]
[1759234381823,1.1742594,113150.0,113140.0,0.53973398]
[1759234382019,1.1871594,113150.0,113140.0,0.53054777]
[1759234382218,1.1771594,113150.0,113140.0,0.53054777]
[1759234382418,1.1871594,113150.0,113140.0,0.53054777]
[1759234382721,1.51640824,113150.0,113140.0,0.51773777]
[1759234382917,1.51640824,113150.0,113140.0,0.15693777]
[1759234382918,1.60474154,113150.0,113140.0,0.15693777]
[1759234384121,1.67423582,113150.0,113140.0,0.15693777]
[1759234385025,1.67423582,113150.0,113140.0,0.06859667]
[1759234385228,1.67423582,113150.0,113140.0,0.12001164]
[1759234385532,1.67423582,113150.0,113140.0,0.12041164]
[1759234386830,1.67423582,113150.0,113140.0,0.03207054]
[1759234387227,1.67423582,113150.0,113140.0,0.05314054]
[1759234388129,1.34498698,113150.0,113140.0,0.15429164]
[1759234388428,1.34602698,113150.0,113140.0,0.51509164]
[1759234388632,1.01729814,113150.0,113140.0,0.51509164]
[1759234388830,1.34654698,113150.0,113140.0,0.51509164]
[1759234391435,0.54026698,113150.0,113140.0,0.51509164]
[1759234391629,1.34678698,113150.0,113140.0,0.51509164]
[1759234392232,1.01753814,113150.0,113140.0,0.51509164]
[1759234392434,1.34678698,113150.0,113140.0,0.51509164]
[1759234393526,0.21101814,113150.0,113140.0,0.51509164]
[1759234393726,1.34638698,113150.0,113140.0,0.51509164]
[1759234394231,0.21101814,113150.0,113140.0,0.51509164]
[1759234394433,1.34630698,113150.0,113140.0,0.51509164]
[1759234396735,1.34650698,113150.0,113140.0,0.51509164]
[1759234400035,1.34650698,113150.0,113140.0,0.50228164]
[1759234400838,1.34650698,113150.0,113140.0,0.4838411]
[1759234404349,1.34650698,113150.0,113140.0,0.51551164]
[1759234404548,1.34650698,113150.0,113140.0,0.50228164]
[1759234410849,1.34650698,113150.0,113140.0,0.54980831]
[1759234412355,1.34643693,113150.0,113140.0,0.54980831]
[1759234414955,0.54019693,113150.0,113140.0,0.54980831]
[1759234415148,1.34531693,113150.0,113140.0,0.54980831]
[1759234415354,1.34535693,113150.0,113140.0,0.54980831]
[1759234416959,0.54019693,113150.0,113140.0,0.54980831]
[1759234417160,1.34535693,113150.0,113140.0,0.54980831]
[1759234420364,0.54019693,113150.0,113140.0,0.54980831]
[1759234420565,1.34527693,113150.0,113140.0,0.54980831]
[1759234424765,0.91446484,113150.0,113140.0,0.86009656]
[1759234425067,0.91446484,113150.0,113140.0,0.87598636]
[1759234425258,0.91446484,113150.0,113140.0,0.54680757]
[1759234425457,0.91446484,113150.0,113140.0,0.87598636]
[1759234425657,1.00279814,113150.0,113140.0,0.87598636]
[1759234425968,1.33197693,113150.0,113140.0,0.54680757]
[1759234426179,1.33197693,113150.0,113140.0,0.4833911]
[1759234426767,1.24364363,113150.0,113140.0,0.4833911]
[1759234430169,1.24364363,113150.0,113140.0,0.53093807]
[1759234430870,1.24364363,113150.0,113140.0,0.4833911]
[1759234431072,0.91446484,113150.0,113140.0,0.53093807]
[1759234431472,1.24364363,113150.0,113140.0,0.53093807]
[1759234434879,0.91446484,113150.0,113140.0,0.53093807]
[1759234435072,1.24364363,113150.0,113140.0,0.53093807]
[1759234435378,0.91446484,113150.0,113140.0,0.53093807]
[1759234435576,1.24364363,113150.0,113140.0,0.53093807]
[1759234436675,0.91446484,113150.0,113140.0,0.53093807]
[1759234436878,1.24364363,113150.0,113140.0,0.53093807]
[1759234437072,0.91446484,113150.0,113140.0,0.53093807]
[1759234437278,1.24364363,113150.0,113140.0,0.53093807]
[1759234437681,0.91446484,113150.0,113140.0,0.53093807]
[1759234437885,1.24364363,113150.0,113140.0,0.53093807]
[1759234440783,1.24364363,113150.0,113140.0,0.4833911]
[1759234441974,1.34566693,113150.0,113140.0,0.51814615]
[1759234442174,1.34566693,113150.0,113140.0,0.51774615]
[1759234442581,1.34566693,113150.0,113140.0,0.49707615]
[1759234442884,1.74566693,113150.0,113140.0,0.49667615]
[1759234443085,1.74566693,113150.0,113140.0,0.49707615]
[1759234443584,1.74566693,113150.0,113140.0,0.13627615]
[1759234443777,1.74566693,113150.0,113140.0,0.16798122]
[1759234443978,1.74566693,113150.0,113140.0,0.16758122]
[1759234444477,1.74566693,113150.0,113140.0,0.16798122]
[1759234445395,1.74566693,113150.0,113140.0,0.07964012]
[1759234445577,2.10646693,113150.0,113140.0,0.03170507]
[1759234445778,0.1230911,113140.0,113130.0,0.08004012]
[1759234445983,0.81306989,113140.0,113130.0,0.03170507]
[1759234446180,1.54224868,113140.0,113130.0,0.03210507]
[1759234446581,1.54224868,113140.0,113130.0,0.0004]
[1759234446979,0.1230989,113130.0,113120.0,0.07924012]
[1759234447185,1.94833648,113130.0,113120.0,0.03250507]
[1759234447382,1.94833648,113130.0,113120.0,0.03170507]
[1759234447888,2.34833648,113130.0,113120.0,0.03170507]
[1759234448483,2.34833648,113130.0,113110.0,0.07924012]
[1759234448484,0.0883568,113120.0,113110.0,0.07924012]
[1759234448783,0.81308559,113120.0,113110.0,0.03250507]
[1759234448988,0.83127769,113120.0,113110.0,0.0008]
[1759234449290,0.1231146,113110.0,113100.0,0.08004012]
[1759234449483,1.25857339,113110.0,113100.0,0.08004012]
[1759234449891,1.25757339,113110.0,113100.0,0.08004012]
[1759234450193,1.25757339,113110.0,113100.0,0.03250507]
[1759234450788,1.25757339,113110.0,113100.0,0.04450507]
[1759234451084,1.32698635,113110.0,113100.0,0.04550507]
[1759234451292,1.32698635,113110.0,113100.0,0.0138]
[1759234452688,1.32686635,113110.0,113100.0,0.0138]
[1759234453081,1.32686635,113110.0,113100.0,0.013]
[1759234453292,1.32686635,113110.0,113100.0,0.0134]
[1759234453491,1.32682635,113110.0,113100.0,0.1248424]
[1759234454286,0.52070635,113110.0,113100.0,0.1248424]
[1759234454486,1.32678635,113110.0,113100.0,0.1248424]
[1759234454786,1.32678635,113110.0,113100.0,0.03647]
[1759234455690,1.32674635,113110.0,113100.0,0.03647]
[1759234456389,1.32666635,113110.0,113100.0,0.03647]
[1759234457387,0.52070635,113110.0,113100.0,0.03647]
[1759234457588,1.32666635,113110.0,113100.0,0.03647]
[1759234459388,0.52070635,113110.0,113100.0,0.03647]
[1759234459588,1.32658635,113110.0,113100.0,0.03647]
[1759234459788,1.32642635,113110.0,113100.0,0.03647]
[1759234460591,0.52070635,113110.0,113100.0,0.03647]
[1759234460792,1.32642635,113110.0,113100.0,0.03647]
[1759234461187,1.32634635,113110.0,113100.0,0.03647]
[1759234462696,0.52070635,113110.0,113100.0,0.03647]
[1759234462900,1.32630635,113110.0,113100.0,0.03647]
[1759234465688,0.52070635,113110.0,113100.0,0.03647]
[1759234465893,1.32606635,113110.0,113100.0,0.03647]
[1759234466100,1.32606635,113110.0,113100.0,0.124842]
[1759234466701,0.52070635,113110.0,113100.0,0.124842]
[1759234467002,1.32594635,113110.0,113100.0,0.124842]
[1759234467197,0.52070635,113110.0,113100.0,0.124842]
[1759234467499,1.32594635,113110.0,113100.0,0.124842]
[1759234468298,1.32582635,113110.0,113100.0,0.124842]
[1759234468496,0.52070635,113110.0,113100.0,0.124842]
[1759234468698,1.32582635,113110.0,113100.0,0.124842]
[1759234471202,1.32582635,113110.0,113100.0,0.15654707]
[1759234471400,1.32566635,113110.0,113100.0,0.15654707]
[1759234471901,0.52070635,113110.0,113100.0,0.15654707]
[1759234472095,1.32554635,113110.0,113100.0,0.15654707]
[1759234472294,1.65520178,113110.0,113100.0,0.15654707]
[1759234474006,0.85036178,113110.0,113100.0,0.15654707]
[1759234474208,1.65508178,113110.0,113100.0,0.15654707]
[1759234475913,0.85036178,113110.0,113100.0,0.15654707]
[1759234476116,1.65492178,113110.0,113100.0,0.17237705]
[1759234477411,0.85036178,113110.0,113100.0,0.17237705]
[1759234477716,1.65484178,113110.0,113100.0,0.17237705]
[1759234482512,1.65484178,113110.0,113100.0,0.06093505]
[1759234483616,1.65484178,113110.0,113100.0,0.06053505]
[1759234483819,1.65484178,113110.0,113100.0,0.06093505]
[1759234484012,1.65484178,113110.0,113100.0,0.06053505]
[1759234484315,1.65484178,113110.0,113100.0,0.06093505]
[1759234484718,2.05484178,113110.0,113100.0,0.06093505]
[1759234485018,2.05484178,113110.0,113100.0,0.06053505]
[1759234485218,2.05484178,113110.0,113100.0,0.06093505]
[1759234485818,1.25036178,113110.0,113100.0,0.14930705]
[1759234486019,2.05436178,113110.0,113100.0,0.14930705]
[1759234487418,2.05436178,113110.0,113100.0,0.06093505]
[1759234487715,2.05428178,113110.0,113100.0,0.14930725]
[1759234487919,1.25036178,113110.0,113100.0,0.14930725]
[1759234488108,2.05428178,113110.0,113100.0,0.14930725]
[1759234489521,2.05428178,113110.0,113100.0,0.06093505]
[1759234490623,1.25036178,113110.0,113100.0,0.06093505]
[1759234490822,2.05428178,113110.0,113100.0,0.06093505]
[1759234493126,1.25036178,113110.0,113100.0,0.14930645]
[1759234493325,2.05428178,113110.0,113100.0,0.14930645]
[1759234494026,1.25036178,113110.0,113100.0,0.14930645]
[1759234494223,2.05428178,113110.0,113100.0,0.14930645]
[1759234494920,2.07205945,113110.0,113100.0,0.14930645]
[1759234495127,2.07205945,113110.0,113100.0,0.14930725]
[1759234495426,2.07205945,113110.0,113100.0,0.06093505]
[1759234496127,2.07205945,113110.0,113100.0,0.14930725]
[1759234496922,2.43285945,113110.0,113100.0,0.06093505]
[1759234500826,2.4528482,113110.0,113100.0,0.0134]
[1759234502731,2.0528482,113110.0,113100.0,0.0134]
[1759234504134,2.0528482,113110.0,113100.0,0.013]
[1759234504333,2.0528482,113110.0,113100.0,0.0134]
[1759234505527,1.2489282,113110.0,113100.0,0.0134]
[1759234505831,1.03321398,113110.0,113100.0,0.0134]
[1759234506031,1.6920482,113110.0,113100.0,0.0134]
[1759234506332,0.8881282,113110.0,113100.0,0.03559]
[1759234506831,1.6920482,113110.0,113100.0,0.03559]
[1759234507032,1.6920482,113110.0,113100.0,0.123962]
[1759234507332,0.8881282,113110.0,113100.0,0.123962]
[1759234507535,1.6920482,113110.0,113100.0,0.123962]
[1759234509736,0.8881282,113110.0,113100.0,0.123962]
[1759234510034,1.6920482,113110.0,113100.0,0.101772]
[1759234510831,0.8881282,113110.0,113100.0,0.101772]
[1759234511333,1.6920482,113110.0,113100.0,0.101772]
[1759234512037,0.8881282,113110.0,113100.0,0.101772]
[1759234512238,1.6920482,113110.0,113100.0,0.101772]
[1759234512539,0.8881282,113110.0,113100.0,0.101772]
[1759234512737,1.34485342,113110.0,113100.0,0.53188705]
[1759234513640,0.87035053,113110.0,113100.0,0.53188705]
[1759234513935,1.34485342,113110.0,113100.0,0.53188705]
[1759234515334,0.54093342,113110.0,113100.0,0.53188705]
[1759234515535,1.34485342,113110.0,113100.0,0.53188705]
[1759234515836,1.34481342,113110.0,113100.0,0.53188705]
[1759234517539,0.54093342,113110.0,113100.0,0.53188705]
[1759234517735,0.45356882,113110.0,113100.0,0.53188705]
[1759234517932,0.41989007,113110.0,113100.0,1.22713911]
[1759234518128,0.41989007,113110.0,113100.0,1.29055558]
[1759234518340,1.22377007,113110.0,113100.0,1.29055558]
[1759234518537,0.41989007,113110.0,113100.0,1.29055558]
[1759234518741,0.06941296,113110.0,113100.0,1.55655622]
[1759234518936,1.13329711,113120.0,113110.0,0.0883641]
[1759234519245,1.15558711,113120.0,113110.0,0.81443121]
[1759234520237,1.15758711,113120.0,113110.0,0.86697383]
[1759234525246,0.82817,113120.0,113110.0,0.86697383]
[1759234525447,1.15758711,113120.0,113110.0,0.86697383]
[1759234525744,1.15746711,113120.0,113110.0,1.26697383]
[1759234526647,0.002,113120.0,113110.0,1.26697383]
[1759234526844,0.002,113120.0,113110.0,2.02319121]
[1759234527048,0.002,113120.0,113110.0,1.28284768]
[1759234527240,0.002,113120.0,113110.0,2.08660768]
[1759234527845,0.002,113120.0,113110.0,2.10755856]
[1759234529047,0.002,113120.0,113110.0,1.30379856]
[1759234529248,0.002,113120.0,113110.0,2.10751856]
[1759234531238,0.002,113120.0,113110.0,1.30379856]
[1759234531440,0.002,113120.0,113110.0,2.10747856]
[1759234533049,0.002,113120.0,113110.0,1.30379856]
[1759234533444,0.002,113120.0,113110.0,2.10747856]
[1759234533651,0.002,113120.0,113110.0,1.30379856]
[1759234533844,0.002,113120.0,113110.0,2.10743856]
[1759234534251,0.002,113120.0,113110.0,2.04381436]
[1759234534446,0.02429,113120.0,113110.0,0.91096498]
[1759234534753,0.02429,113120.0,113110.0,2.04381436]
[1759234534946,0.02429,113120.0,113110.0,1.24017436]
[1759234535146,0.02429,113120.0,113110.0,2.04381436]
[1759234536753,0.02429,113120.0,113110.0,1.71460498]
[1759234536754,0.35349938,113120.0,113110.0,1.71460498]
[1759234537052,0.02429,113120.0,113110.0,2.04381436]
[1759234537252,0.02429,113120.0,113110.0,1.36199163]
[1759234537840,0.02429,113120.0,113110.0,0.55839163]
[1759234538046,0.44185578,113120.0,113110.0,0.55839163]
[1759234538241,0.45531578,113120.0,113110.0,0.54502163]
[1759234538453,0.45531578,113120.0,113110.0,0.45665753]
[1759234538849,0.45531578,113120.0,113110.0,0.45705753]
[1759234539055,0.45531578,113120.0,113110.0,0.49799508]
[1759234541754,0.1261064,113120.0,113110.0,0.49799508]
[1759234542057,0.45531578,113120.0,113110.0,0.51136508]
[1759234542654,0.45531578,113120.0,113110.0,0.49799508]
[1759234544554,0.45531578,113120.0,113110.0,0.49799508]
[1759234549362,0.1261064,113120.0,113110.0,0.49799508]
[1759234549560,0.45531578,113120.0,113110.0,0.49799508]
[1759234550859,0.45531578,113120.0,113110.0,0.54542173]
[1759234551461,0.1261064,113120.0,113110.0,0.55865173]
[1759234551662,0.1261064,113120.0,113110.0,0.54542173]
[1759234551663,0.45531578,113120.0,113110.0,0.54542173]
[1759234551864,0.85531578,113120.0,113110.0,0.07377753]
[1759234552061,0.85531578,113120.0,113110.0,0.07337753]
[1759234552359,0.85531578,113120.0,113110.0,0.02635088]
[1759234552559,0.87538389,113120.0,113110.0,0.02635088]
[1759234553564,0.87538389,113120.0,113110.0,0.04771088]
[1759234553764,1.67898389,113120.0,113110.0,0.13607508]
[1759234554768,1.67902389,113120.0,113110.0,0.13607508]
[1759234554967,0.87538389,113120.0,113110.0,0.13607508]
[1759234555156,1.67902389,113120.0,113110.0,0.13607508]
[1759234555359,1.65895578,113120.0,113110.0,0.51010508]
[1759234555555,0.5126464,113120.0,113110.0,0.51010508]
[1759234555768,1.64553578,113120.0,113110.0,0.51010508]
[1759234556170,0.84185578,113120.0,113110.0,0.51010508]
[1759234556369,1.64557578,113120.0,113110.0,0.51010508]
[1759234556570,1.64557578,113120.0,113110.0,0.55753173]
[1759234557173,1.65931578,113120.0,113110.0,0.55753173]
[1759234558477,0.85559578,113120.0,113110.0,0.55753173]
[1759234558776,1.65931578,113120.0,113110.0,0.55753173]
[1759234559071,0.85559578,113120.0,113110.0,0.55753173]
[1759234559570,1.24549578,113120.0,113110.0,0.55753173]
[1759234559875,0.44185578,113120.0,113110.0,0.55753173]
[1759234560072,1.24549578,113120.0,113110.0,0.55753173]
[1759234561266,1.25923578,113120.0,113110.0,0.54430173]
[1759234561470,1.25923578,113120.0,113110.0,0.45593753]
[1759234563272,1.25923578,113120.0,113110.0,0.54430173]
[1759234566175,1.27931637,113120.0,113110.0,0.54430173]
[1759234569572,1.27931637,113120.0,113110.0,0.09513753]
[1759234569977,1.27931637,113120.0,113110.0,0.18310203]
[1759234570279,1.27931637,113120.0,113110.0,0.18350203]
[1759234572977,1.27931637,113120.0,113110.0,0.09513753]
[1759234573474,1.27931637,113120.0,113110.0,0.18350203]
[1759234574076,1.27931637,113120.0,113110.0,0.09513753]
[1759234574677,1.27931637,113120.0,113110.0,0.18350203]
[1759234574877,0.47567637,113120.0,113110.0,0.18350203]
[1759234575070,1.27931637,113120.0,113110.0,0.18350203]
[1759234575369,1.27931637,113120.0,113110.0,0.09513753]
[1759234577578,1.25923578,113120.0,113110.0,0.09513753]
[1759234578078,1.27933069,113120.0,113110.0,0.09513753]
[1759234579675,0.47569069,113120.0,113110.0,0.09513753]
[1759234579873,1.27933069,113120.0,113110.0,0.09513753]
[1759234585284,0.47569069,113120.0,113110.0,0.09513753]
[1759234585484,1.27933069,113120.0,113110.0,0.09513753]
[1759234586577,1.27933069,113120.0,113110.0,0.07377753]
[1759234587184,1.27933069,113120.0,113110.0,0.02635088]
[1759234587874,1.27933069,113120.0,113110.0,0.04763088]
[1759234588684,1.27933069,113120.0,113110.0,0.02635088]
[1759234590782,1.27933069,113120.0,113110.0,0.07405345]
[1759234590987,1.27933069,113120.0,113110.0,0.09533345]
[1759234591691,1.27933069,113120.0,113110.0,0.09493345]